bitfinex/quotes_ETHUSD_20241123
["timestamp","ask_amount","ask_price","bid_price","bid_amount"]
[1732327412047,0.27846166,3331.3,3330.1,0.7829]
[1732327412219,0.27846166,3331.2,3330.1,0.7829]
[1732327412461,0.82846166,3331.1,3330.1,0.7829]
[1732327412636,0.27846166,3331.0,3330.1,0.7829]
[1732327412837,0.55,3330.9,3330.1,0.7829]
[1732327414691,0.55,3330.7,3330.1,0.7829]
[1732327416549,0.55,3330.5,3330.1,0.7829]
[1732327416985,0.55,3330.3,3330.1,0.7829]
[1732327418261,1.28827467,3330.3,3330.1,0.7829]
[1732327418579,0.55,3330.3,3330.1,0.7829]
[1732327418992,0.55,3330.1,3328.7,0.7632]
[1732327419151,0.55,3330.1,3328.9,0.7632]
[1732327419352,0.55,3330.1,3329.0,0.03003487]
[1732327419664,0.55,3329.9,3328.8,0.7632]
[1732327419872,0.55,3329.9,3328.9,0.79323487]
[1732327420043,0.55,3329.7,3328.9,0.79323487]
[1732327420245,0.55,3329.7,3328.9,0.7632]
[1732327421075,0.27805969,3329.6,3328.9,0.7632]
[1732327421278,0.55,3329.5,3328.9,0.7632]
[1732327421437,0.55,3329.8,3328.9,0.7632]
[1732327421642,0.55,3329.6,3328.9,0.7632]
[1732327421872,0.27798633,3329.5,3328.9,0.7632]
[1732327422080,0.55,3329.4,3328.9,0.7632]
[1732327422452,1.18573643,3330.1,3328.9,0.7632]
[1732327422651,0.74077614,3330.1,3329.1,0.7632]
[1732327422865,0.27794923,3330.0,3329.2,0.79323318]
[1732327423039,0.7671,3331.0,3329.2,0.79323318]
[1732327423245,0.27805437,3330.9,3329.2,0.79323318]
[1732327423443,0.27805437,3330.8,3329.2,2.27408117]
[1732327423671,0.7671,3331.4,3329.4,0.7632]
[1732327423919,0.27808266,3331.3,3329.6,0.7632]
[1732327424107,0.27808266,3331.2,3329.7,0.79322423]
[1732327424291,0.27808266,3331.1,3329.7,0.79322423]
[1732327424490,0.15248342,3331.6,3329.7,0.79322423]
[1732327424679,0.27805013,3331.5,3329.7,0.79322423]
[1732327424874,0.27805013,3331.4,3329.7,0.79322423]
[1732327425075,0.55,3331.2,3329.7,0.79322423]
[1732327425394,0.55,3331.0,3329.7,0.79322423]
[1732327425596,0.55,3331.2,3329.7,0.79322423]
[1732327425769,0.2779932,3331.1,3329.7,0.79322423]
[1732327425978,0.55,3331.0,3329.7,0.79322423]
[1732327426277,0.7671,3331.7,3329.7,0.79322423]
[1732327426508,0.27789735,3331.6,3329.8,0.7632]
[1732327426674,0.7671,3332.3,3330.0,0.7632]
[1732327427019,0.2779433,3332.2,3330.2,0.7632]
[1732327427199,0.2779433,3332.1,3330.3,0.79321725]
[1732327427372,0.2779433,3332.0,3330.3,0.79321725]
[1732327427576,0.7671,3332.3,3330.3,0.79321725]
[1732327427577,0.2779433,3331.9,3330.3,0.79321725]
[1732327427799,0.2779433,3332.1,3330.3,0.79321725]
[1732327428000,0.2779433,3332.0,3330.3,0.79321725]
[1732327428202,0.2779433,3331.9,3330.4,0.0300173]
[1732327428480,0.55,3331.7,3330.5,0.7632]
[1732327428781,0.55,3331.7,3329.7,0.01]
[1732327428782,0.55,3331.7,3330.7,0.7632]
[1732327428977,0.55,3331.7,3330.8,0.03001734]
[1732327429178,0.55,3331.7,3330.9,0.7632]
[1732327431304,1.28254903,3331.7,3330.9,0.7632]
[1732327432100,0.55,3331.7,3330.9,0.7632]
[1732327432549,0.01786956,3332.4,3330.0,0.01]
[1732327432550,0.55,3331.8,3331.0,0.79321735]
[1732327432836,0.76042385,3332.4,3331.0,0.79321735]
[1732327435118,0.55,3332.3,3331.0,0.79321735]
[1732327437524,0.01786956,3332.4,3331.0,0.79321735]
[1732327440421,0.78235376,3332.4,3331.0,0.79321735]
[1732327440623,0.01786956,3332.4,3331.0,0.79321735]
[1732327442143,0.01786956,3332.4,3331.3,0.2984]
[1732327442335,0.01786956,3332.4,3331.6,1.0519]
[1732327442539,0.01786956,3332.4,3331.8,0.7535]
[1732327443740,0.01786956,3332.4,3331.9,0.78350939]
[1732327445244,0.01786956,3332.4,3331.9,0.7535]
[1732327445852,0.01786956,3332.4,3332.0,0.03000884]
[1732327446050,0.01786956,3332.4,3332.1,0.7535]
[1732327448559,5.27,3336.0,3330.8,0.73656728]
[1732327448560,0.09,3334.6,3332.9,0.2984]
[1732327448780,2.498443,3334.5,3333.1,0.7535]
[1732327448951,0.27671956,3334.4,3333.1,0.7535]
[1732327449162,1.15135322,3334.5,3333.1,1.0519]
[1732327449338,0.8283,3334.5,3333.3,0.2984]
[1732327449691,0.09,3334.6,3333.5,1.0519]
[1732327449988,0.82701509,3334.6,3334.0,0.7535]
[1732327450291,0.09,3334.6,3334.0,0.7535]
[1732327450977,0.09,3334.6,3334.1,1.08188967]
[1732327451277,0.09,3334.8,3334.3,0.2984]
[1732327451485,0.09,3334.8,3334.5,1.0519]
[1732327451846,0.09,3334.8,3334.5,0.7535]
[1732327452546,0.09,3334.8,3333.5,0.02998375]
[1732327452841,0.09,3334.8,3333.6,0.7535]
[1732327453191,0.09,3334.8,3333.7,0.02998976]
[1732327453489,0.09,3334.6,3333.6,0.7535]
[1732327453659,0.55,3334.5,3333.6,0.7535]
[1732327456271,1.3783,3334.5,3333.6,0.7535]
[1732327456447,1.3783,3334.5,3333.2,0.7535]
[1732327458892,2.11195787,3334.5,3333.2,0.7535]
[1732327459092,0.55,3334.3,3333.2,0.7535]
[1732327460601,0.55,3334.1,3332.1,0.02999637]
[1732327460900,0.55,3333.9,3332.0,0.7703]
[1732327461083,0.55,3333.7,3332.0,0.7703]
[1732327461868,0.55,3333.7,3332.3,0.7703]
[1732327463305,1.15964363,3333.7,3332.3,0.7703]
[1732327465110,1.15964363,3333.7,3332.3,0.7703]
[1732327466993,0.55,3333.5,3332.3,0.7703]
[1732327467367,1.27126871,3334.4,3332.4,0.80030735]
[1732327467568,0.27713564,3334.2,3332.4,0.7703]
[1732327467770,0.27713564,3334.2,3332.5,0.03000322]
[1732327467966,0.8282,3334.4,3331.6,0.7703]
[1732327468165,0.19193816,3334.2,3331.7,0.80030321]
[1732327468573,0.55,3333.9,3331.9,0.7703]
[1732327468793,0.55,3333.7,3331.9,0.7703]
[1732327469029,0.55,3333.7,3332.1,0.7703]
[1732327469234,0.55,3333.9,3332.3,0.7703]
[1732327469944,0.63500687,3334.2,3331.2,0.04000414]
[1732327469945,0.55,3334.1,3331.4,0.01]
[1732327470091,0.55,3334.1,3331.6,0.7703]
[1732327470297,0.55,3334.1,3331.7,0.80030256]
[1732327471289,1.14472429,3334.1,3331.7,0.80030256]
[1732327471898,0.55,3333.9,3331.8,0.2984]
[1732327472100,0.55,3333.9,3332.3,0.2984]
[1732327472304,0.59472429,3334.1,3332.5,0.7703]
[1732327472305,0.55,3334.0,3332.5,0.7703]
[1732327472527,0.55,3334.1,3332.5,0.7703]
[1732327472904,0.55,3333.9,3332.5,0.7703]
[1732327473298,0.55,3334.1,3332.5,0.7703]
[1732327473532,0.55,3333.9,3332.5,0.7703]
[1732327473731,0.8282,3333.6,3331.3,0.03000265]
[1732327473997,0.55,3333.2,3331.2,0.7703]
[1732327474193,0.55,3333.0,3331.2,0.7703]
[1732327474429,0.55,3332.8,3331.2,0.7703]
[1732327474729,0.55,3332.4,3331.2,0.7703]
[1732327475151,0.8282,3332.5,3331.2,0.7703]
[1732327475928,1.43187829,3332.5,3331.2,0.7703]
[1732327476110,0.27720908,3332.4,3331.2,0.7703]
[1732327476317,1.43187829,3332.5,3331.2,0.7703]
[1732327477240,0.55,3332.4,3331.2,0.7703]
[1732327477439,0.55,3332.2,3331.2,0.7703]
[1732327478306,0.55,3331.9,3329.5,0.7533]
[1732327478530,0.55,3331.7,3329.6,0.78332533]
[1732327478837,0.55,3331.9,3329.6,0.78332533]
[1732327478998,0.55,3331.7,3329.6,0.78332533]
[1732327479201,0.55,3331.7,3329.6,0.7533]
[1732327479403,0.55,3331.5,3329.6,0.7533]
[1732327479858,0.7955,3331.6,3329.6,0.7533]
[1732327479859,0.55,3331.3,3329.6,0.7533]
[1732327480091,0.55,3331.1,3329.6,0.7533]
[1732327480357,1.07200853,3331.2,3329.6,0.7533]
[1732327480358,0.55,3330.9,3329.6,0.7533]
[1732327480563,0.55,3330.7,3329.6,0.7533]
[1732327480865,0.55,3330.5,3329.6,0.7533]
[1732327481016,0.55,3330.5,3328.0,0.7533]
[1732327481221,0.55,3330.5,3328.1,0.7533]
[1732327481416,0.55,3330.5,3328.3,0.7533]
[1732327481655,0.55,3330.5,3328.4,0.03003957]
[1732327481863,0.55,3330.5,3328.4,0.7533]
[1732327482068,0.55,3330.5,3328.6,0.7533]
[1732327483654,0.63601878,3332.2,3328.8,0.7533]
[1732327483655,0.55,3330.8,3328.8,0.7533]
[1732327484657,0.55,3330.8,3327.2,0.27985]
[1732327484658,0.7955,3331.7,3329.0,0.7533]
[1732327484859,0.27564634,3331.6,3329.2,0.7533]
[1732327485323,0.16568214,3331.5,3329.2,0.7533]
[1732327486366,0.55,3331.4,3329.2,0.7533]
[1732327486864,0.16568214,3331.5,3329.2,0.7533]
[1732327487019,0.27568427,3331.4,3329.3,0.7533]
[1732327487382,0.16568214,3331.5,3329.3,0.7533]
[1732327487600,0.27561676,3331.4,3329.3,0.7533]
[1732327487765,0.16568214,3331.5,3329.3,0.7533]
[1732327488092,0.55,3331.4,3329.4,0.03003198]
[1732327488401,0.55,3331.4,3329.4,0.7533]
[1732327488759,0.16568214,3331.5,3329.4,0.7533]
[1732327488996,0.16568214,3331.5,3329.5,0.78332965]
[1732327489803,0.58567505,3331.7,3329.5,0.78332965]
[1732327490296,0.7955,3332.1,3329.5,0.78332965]
[1732327490655,0.55,3332.0,3329.5,0.7533]
[1732327492195,0.55,3332.0,3329.6,0.7533]
[1732327492363,0.55,3331.8,3329.6,0.7533]
[1732327495594,0.49558504,3331.9,3329.6,0.7533]
[1732327495595,0.55,3331.6,3329.6,0.7533]
[1732327496504,0.55,3331.4,3329.6,0.7533]
[1732327497100,0.55,3331.6,3329.6,0.7533]
[1732327497303,0.55,3331.6,3329.0,0.7786]
[1732327497506,0.55,3331.9,3329.2,0.55]
[1732327497703,0.27624555,3331.8,3329.4,0.7786]
[1732327497903,0.55,3331.7,3329.5,0.80862778]
[1732327498270,0.55,3331.8,3329.5,0.80862778]
[1732327498471,0.55,3331.9,3329.5,0.80862778]
[1732327498701,0.55,3331.7,3329.5,0.80862778]
[1732327499318,0.18312614,3331.8,3329.5,0.80862778]
[1732327499607,0.8022,3332.5,3329.6,0.55]
[1732327499814,0.27662607,3332.4,3329.7,0.80862169]
[1732327500016,0.27662607,3332.4,3329.9,0.7786]
[1732327500172,0.27662607,3332.4,3330.1,0.7786]
[1732327500768,0.55,3332.3,3330.1,0.7786]
[1732327500975,0.55,3332.1,3330.1,0.7786]
[1732327501176,0.8022,3331.9,3330.1,0.7786]
[1732327501391,0.27717191,3331.8,3330.1,0.7786]
[1732327501583,3.0,3332.3,3330.3,0.7786]
[1732327501584,0.44260172,3332.3,3330.3,0.7786]
[1732327501884,0.27723639,3332.2,3330.4,0.80861922]
[1732327502083,1.24480172,3332.8,3330.5,0.7786]
[1732327502272,0.9380015,3332.7,3330.7,0.7786]
[1732327502648,0.27752133,3332.6,3330.7,0.7786]
[1732327502849,0.27752133,3332.5,3330.7,0.7786]
[1732327503147,0.27752133,3332.4,3330.7,0.7786]
[1732327503313,0.66438133,3332.8,3330.7,0.7786]
[1732327503651,0.27752133,3332.7,3330.7,0.7786]
[1732327503837,0.27752133,3332.6,3330.7,0.7786]
[1732327504034,0.27752133,3332.8,3330.7,0.7786]
[1732327504237,0.27752133,3332.7,3330.7,0.7786]
[1732327504762,0.55,3332.6,3330.7,0.7786]
[1732327504918,0.27752133,3332.5,3330.7,0.7786]
[1732327505937,0.27752133,3332.5,3330.8,0.808619]
[1732327506248,0.69418159,3332.9,3330.8,0.808619]
[1732327506474,0.27824835,3332.8,3330.8,0.808619]
[1732327507148,0.27824835,3332.8,3331.0,0.7786]
[1732327510278,0.69418159,3332.9,3331.0,0.7786]
[1732327510279,0.27806885,3332.7,3331.0,0.7786]
[1732327510594,0.27806885,3332.6,3331.1,0.80861574]
[1732327510877,0.69418159,3332.9,3331.1,0.7786]
[1732327511064,0.8280657,3332.8,3331.1,0.7786]
[1732327511373,0.43029043,3332.7,3331.1,0.7786]
[1732327511578,0.2780657,3332.6,3331.1,0.7786]
[1732327513742,0.55,3332.5,3331.1,0.7786]
[1732327513952,0.2780657,3332.4,3331.1,0.7786]
[1732327516088,0.2780657,3332.3,3331.1,0.7786]
[1732327516290,0.55,3332.8,3331.1,0.7786]
[1732327516593,0.27823508,3332.7,3331.1,0.7786]
[1732327516954,0.27823508,3332.7,3331.2,0.8212]
[1732327517354,0.27819718,3332.6,3331.2,0.8212]
[1732327517698,0.27819718,3332.5,3331.2,0.8212]
[1732327517992,0.27819718,3332.4,3331.2,0.8212]
[1732327518287,0.27819718,3332.3,3331.2,0.8212]
[1732327518455,0.27819718,3332.2,3331.2,0.8212]
[1732327518658,0.09,3332.9,3331.2,0.8212]
[1732327518859,0.27825635,3332.8,3331.2,0.8212]
[1732327519099,0.27825635,3332.7,3331.2,0.79982053]
[1732327519269,0.27825635,3332.6,3331.2,0.79982053]
[1732327519471,0.27825635,3332.5,3331.2,0.79982053]
[1732327519793,0.27825635,3332.4,3331.2,0.79982053]
[1732327519994,0.27825635,3332.3,3331.2,0.79982053]
[1732327520189,0.27825635,3332.2,3331.2,0.79982053]
[1732327520382,0.55,3332.7,3331.2,0.79982053]
[1732327520383,0.27825635,3332.1,3331.2,0.79982053]
[1732327520694,0.27825635,3332.0,3331.2,0.79982053]
[1732327520855,0.27825635,3332.6,3331.2,0.79982053]
[1732327521057,0.27838007,3332.5,3331.2,0.79982053]
[1732327521278,0.27838007,3332.4,3331.2,0.79982053]
[1732327521484,0.27838007,3332.3,3331.2,0.79982053]
[1732327521681,0.27838007,3332.2,3331.2,0.79982053]
[1732327521890,0.27838007,3332.1,3331.2,0.79982053]
[1732327522195,0.27838007,3332.0,3331.2,0.79982053]
[1732327522353,0.60157425,3332.7,3331.2,0.79982053]
[1732327522558,0.27845972,3332.6,3331.2,0.79982053]
[1732327522900,0.27845972,3332.5,3331.2,0.79982053]
[1732327523191,0.27845972,3332.4,3331.2,0.79982053]
[1732327523390,0.27845972,3332.3,3331.2,0.79982053]
[1732327523603,0.27845972,3332.2,3331.2,0.79982053]
[1732327523809,0.27845972,3332.1,3331.2,0.79982053]
[1732327523970,0.27845972,3332.0,3331.2,0.79982053]
[1732327524297,0.27845972,3331.9,3331.2,0.79982053]
[1732327524497,0.09,3332.8,3331.2,0.79982053]
[1732327524498,0.27845972,3332.3,3331.2,0.79982053]
[1732327524707,0.27845972,3332.2,3331.2,0.79982053]
[1732327524887,0.7814,3332.7,3331.2,0.79982053]
[1732327524888,0.27845972,3332.1,3331.2,0.79982053]
[1732327525061,0.27845972,3332.0,3331.2,0.79982053]
[1732327525399,0.27845972,3331.9,3331.2,0.79982053]
[1732327525602,0.27845972,3331.8,3331.2,0.79982053]
[1732327525896,0.27845972,3331.7,3331.2,0.79982053]
[1732327526057,0.27845972,3331.6,3331.2,0.79982053]
[1732327526264,0.27845972,3331.5,3331.2,0.79982053]
[1732327526609,0.27845972,3331.4,3331.2,0.79982053]
[1732327526787,0.27845972,3331.3,3331.2,0.79982053]
[1732327527265,0.27845972,3331.3,3329.5,0.2984]
[1732327527466,0.27845972,3331.2,3329.7,0.8212]
[1732327527695,0.27845972,3331.1,3329.7,0.8212]
[1732327527960,0.27880049,3331.0,3329.7,0.8212]
[1732327528189,0.27880049,3330.9,3329.9,1.1196]
[1732327528401,0.7814,3332.3,3329.0,0.01]
[1732327528402,0.55,3332.1,3330.3,0.8212]
[1732327528561,0.2788971,3331.5,3330.3,0.8212]
[1732327528761,0.2788971,3331.4,3330.3,0.8212]
[1732327528962,0.2788971,3331.3,3330.3,0.8212]
[1732327529187,0.44608079,3331.8,3330.3,0.8212]
[1732327529188,0.2788971,3331.2,3330.3,0.8212]
[1732327529391,0.2788971,3331.1,3330.3,0.8212]
[1732327529562,0.2788971,3331.0,3330.3,0.8212]
[1732327529766,0.44608079,3331.8,3330.3,0.8212]
[1732327529962,0.2790079,3331.7,3330.3,0.8212]
[1732327530209,1.50648869,3331.7,3330.3,0.8212]
[1732327530501,0.87573756,3331.6,3330.3,0.8212]
[1732327530701,0.72508869,3331.5,3330.3,0.8212]
[1732327530917,0.72508869,3331.4,3330.3,0.8212]
[1732327531198,0.72508869,3331.3,3330.3,0.8212]
[1732327531402,0.7814,3331.1,3330.3,0.8212]
[1732327531610,1.27508869,3331.0,3328.9,0.8212]
[1732327531763,0.93073756,3330.9,3328.9,0.8212]
[1732327531963,0.72508869,3330.8,3328.9,0.8212]
[1732327532212,0.2790079,3330.7,3328.9,0.8212]
[1732327532395,0.2790079,3330.6,3328.9,0.8212]
[1732327532698,0.2790079,3330.5,3328.9,0.8212]
[1732327532914,0.2790079,3330.4,3328.9,0.8212]
[1732327533205,0.2790079,3330.3,3328.9,0.8212]
[1732327533376,0.2790079,3330.2,3329.0,0.85123605]
[1732327533583,0.55,3331.0,3329.1,0.87136121]
[1732327533899,0.46049823,3330.9,3329.1,0.8212]
[1732327534100,0.27847855,3330.8,3329.1,0.8212]
[1732327534297,0.7814,3331.4,3328.1,0.04003219]
[1732327534298,0.27847855,3330.7,3329.2,0.8713601]
[1732327534502,0.27847855,3330.6,3329.2,0.8212]
[1732327534804,0.27847855,3330.5,3329.4,0.8212]
[1732327535113,0.55,3331.3,3329.6,0.8212]
[1732327535288,0.27832846,3331.2,3329.6,0.8212]
[1732327535492,0.27832846,3331.2,3329.5,0.0501568]
[1732327535493,0.27832846,3331.1,3329.7,0.87135459]
[1732327535691,0.27832846,3331.0,3329.7,0.8212]
[1732327536071,0.27832846,3331.0,3329.9,0.8212]
[1732327536270,1.05972846,3331.4,3329.9,0.8212]
[1732327536485,0.27832846,3331.3,3330.1,0.8212]
[1732327536695,0.27832846,3331.2,3330.1,0.8212]
[1732327536898,0.27832846,3331.1,3330.3,0.7808]
[1732327537119,0.27832846,3331.0,3330.3,0.7808]
[1732327537319,0.27832846,3331.4,3330.3,0.7808]
[1732327537662,0.27832846,3331.3,3330.3,0.7808]
[1732327537925,0.27832846,3331.2,3330.3,0.7808]
[1732327538123,0.27832846,3331.1,3330.3,0.7808]
[1732327538330,0.27832846,3331.0,3330.3,0.7808]
[1732327538498,0.27832846,3331.4,3330.3,0.7808]
[1732327538684,0.27832846,3331.3,3330.3,0.7808]
[1732327538879,0.27832846,3331.2,3330.3,0.7808]
[1732327539087,0.27832846,3331.1,3330.3,0.7808]
[1732327539279,0.27832846,3331.0,3330.3,0.7808]
[1732327539585,0.27832846,3330.9,3330.3,0.7808]
[1732327539787,0.27832846,3330.8,3330.3,0.7808]
[1732327540097,0.44608079,3331.7,3330.3,0.7808]
[1732327540302,0.82837457,3331.6,3330.3,0.7808]
[1732327540611,0.55,3331.4,3330.3,0.7808]
[1732327540786,0.27837457,3331.3,3330.3,0.7808]
[1732327541104,0.27837457,3331.2,3330.3,0.7808]
[1732327541317,0.27837457,3331.1,3330.3,0.7808]
[1732327541516,0.27837457,3331.0,3330.3,0.7808]
[1732327541689,0.42744554,3331.5,3330.3,0.7808]
[1732327541690,0.27837457,3330.9,3330.3,0.7808]
[1732327541883,0.44608079,3331.7,3329.1,0.2984]
[1732327542082,0.27844449,3331.6,3329.3,0.7808]
[1732327542317,0.27844449,3331.5,3329.6,0.2984]
[1732327542533,0.55,3331.9,3330.0,0.7808]
[1732327542687,0.27844449,3331.8,3330.2,0.2984]
[1732327542892,0.09,3332.3,3330.8,0.2984]
[1732327543203,0.09,3332.6,3331.0,0.7808]
[1732327543398,0.27833921,3332.5,3331.2,0.7744]
[1732327543635,0.27833921,3332.5,3331.4,0.7744]
[1732327543842,0.09,3332.6,3331.4,0.7744]
[1732327544125,0.09,3332.6,3331.5,0.82438362]
[1732327544284,0.09,3333.3,3331.6,1.10280841]
[1732327544486,0.27815262,3333.2,3331.7,0.7744]
[1732327544806,0.09,3333.7,3331.8,0.8044068]
[1732327544985,0.27813107,3333.6,3331.9,0.04997922]
[1732327545190,0.09,3333.7,3332.0,0.80440385]
[1732327545386,0.09,3334.1,3332.2,0.7744]
[1732327545593,0.27783436,3334.0,3332.4,0.7744]
[1732327545792,0.09,3334.1,3332.6,0.7744]
[1732327545993,0.09,3334.1,3332.5,0.07997219]
[1732327545994,0.09,3334.1,3332.8,0.7744]
[1732327546234,0.09,3334.1,3333.0,0.7744]
[1732327546723,0.09,3334.1,3333.2,0.7744]
[1732327547099,0.09,3334.1,3333.3,0.04964245]
[1732327547615,0.09,3334.1,3333.4,0.04769789]
[1732327548013,0.09,3334.1,3333.2,0.7744]
[1732327548220,0.09,3334.1,3333.3,0.04769899]
[1732327549302,0.27700034,3334.0,3333.3,0.04769899]
[1732327549502,0.27700034,3334.0,3330.3,0.01]
[1732327549503,0.55,3333.9,3330.3,0.01]
[1732327549713,1.25348676,3333.8,3333.4,0.04613233]
[1732327549916,0.27700034,3333.7,3332.4,0.7744]
[1732327553048,0.27697891,3333.6,3332.4,0.7744]
[1732327553203,0.27697891,3333.5,3332.4,0.7744]
[1732327553403,0.27697891,3333.4,3330.7,0.7744]
[1732327553598,1.11287891,3333.3,3330.7,0.7744]
[1732327553850,0.27697891,3333.2,3330.7,0.7744]
[1732327555050,0.86188247,3333.2,3330.7,0.7744]
[1732327555348,0.27697891,3333.1,3330.0,0.7744]
[1732327555514,0.8259,3332.9,3330.2,0.7744]
[1732327555717,0.55,3332.1,3330.2,0.7744]
[1732327555940,0.27697891,3332.0,3330.3,0.04034562]
[1732327556142,0.27697891,3332.0,3330.2,0.7744]
[1732327556640,3.55,3331.9,3330.2,0.7744]
[1732327556847,0.55,3331.7,3330.2,0.7744]
[1732327557045,0.55,3331.5,3330.2,0.7744]
[1732327557344,0.27707964,3331.4,3330.2,0.7744]
[1732327557722,0.44332742,3332.0,3330.2,0.7744]
[1732327557723,0.55,3332.0,3330.2,0.7744]
[1732327557919,0.55,3331.8,3330.2,0.7744]
[1732327558118,0.2770226,3331.7,3330.2,0.7744]
[1732327558656,0.8259,3332.2,3330.2,0.7744]
[1732327558805,0.27697854,3332.1,3330.2,0.7744]
[1732327559306,0.27697854,3332.0,3330.2,0.7744]
[1732327559505,0.55,3332.4,3330.2,0.7744]
[1732327559506,0.27697854,3331.9,3330.2,0.7744]
[1732327559741,0.27697854,3331.8,3330.2,0.7744]
[1732327559952,0.27697854,3332.3,3330.2,0.7744]
[1732327560250,0.27697154,3332.2,3330.2,0.7744]
[1732327560544,0.27697154,3332.1,3330.2,0.7744]
[1732327560730,0.27697154,3332.0,3330.2,0.7744]
[1732327560936,0.27697154,3331.9,3330.2,0.7744]
[1732327561231,0.27697154,3331.8,3330.2,0.7744]
[1732327561430,0.55,3332.3,3330.2,0.7744]
[1732327561626,0.27691407,3332.2,3330.2,0.7744]
[1732327562029,0.55,3332.1,3330.2,0.7744]
[1732327562229,0.27691407,3332.0,3330.2,0.7744]
[1732327562435,0.27699752,3331.9,3330.2,0.7744]
[1732327562744,0.892,3332.6,3330.3,0.8112]
[1732327563057,0.27700722,3332.5,3330.3,0.8112]
[1732327563257,0.27700722,3332.5,3330.4,0.04067005]
[1732327563559,0.27700722,3332.5,3330.5,0.8112]
[1732327564043,0.27700722,3332.5,3330.7,0.8112]
[1732327564255,0.27700722,3332.5,3330.8,0.04061418]
[1732327564458,0.27700722,3332.5,3330.9,0.8112]
[1732327564810,0.09,3332.6,3331.0,0.04058882]
[1732327565051,0.09,3332.6,3331.1,0.8112]
[1732327565347,0.09,3332.6,3331.3,0.8112]
[1732327565552,0.09,3333.1,3331.3,0.8112]
[1732327565734,0.09,3333.1,3331.5,0.8112]
[1732327565940,0.27715781,3333.0,3331.5,0.8112]
[1732327566145,0.09,3333.1,3331.7,0.8112]
[1732327566314,0.802,3333.9,3331.7,0.8112]
[1732327566315,0.09,3333.6,3331.7,0.8112]
[1732327566527,0.27716324,3333.5,3331.9,0.8112]
[1732327566959,0.27716324,3333.5,3332.1,0.8112]
[1732327567267,0.27716324,3333.5,3332.2,0.04045253]
[1732327567467,0.27716324,3333.5,3332.3,0.8112]
[1732327568933,0.27716324,3333.5,3332.5,0.8112]
[1732327569377,0.27716324,3333.5,3332.6,0.04046095]
[1732327569586,0.27716324,3333.5,3332.5,0.8112]
[1732327569937,0.27716324,3333.5,3332.6,0.04046095]
[1732327570245,0.27716324,3333.5,3332.7,0.04045985]
[1732327570461,0.27716324,3333.5,3331.2,0.8112]
[1732327570772,0.802,3333.4,3331.9,0.8112]
[1732327571072,0.27716324,3333.3,3332.0,0.03898695]
[1732327571245,0.802,3333.4,3332.0,0.03898695]
[1732327571246,0.27716324,3333.2,3332.0,0.03898695]
[1732327571579,0.27716324,3333.1,3332.0,0.03898695]
[1732327571871,0.82716324,3333.0,3331.9,0.8112]
[1732327572050,0.55,3332.8,3331.9,0.8112]
[1732327572235,0.55,3332.6,3331.9,0.8112]
[1732327572431,0.27716324,3332.5,3331.9,0.8112]
[1732327573073,0.27761418,3332.4,3331.9,0.8112]
[1732327573383,0.27761418,3332.3,3331.9,0.8112]
[1732327573563,0.27761418,3332.2,3331.9,0.8112]
[1732327573763,0.27761418,3332.5,3331.9,0.8112]
[1732327574082,0.60365697,3333.3,3331.9,0.8112]
[1732327574083,0.27761418,3332.4,3331.9,0.8112]
[1732327574245,0.27761418,3332.3,3332.0,0.03769144]
[1732327574440,0.55,3332.1,3332.0,0.03769144]
[1732327574679,0.82761418,3332.1,3331.1,0.8112]
[1732327574865,0.27761418,3332.0,3331.2,0.03769984]
[1732327575179,0.82761418,3331.9,3331.1,0.8112]
[1732327575377,0.55,3331.7,3331.1,0.51269]
[1732327575545,0.27761418,3331.6,3328.8,0.03002501]
[1732327575748,0.71296142,3331.5,3331.2,0.03769909]
[1732327576057,0.2776823,3331.4,3328.7,0.32843214]
[1732327576375,0.2776823,3331.4,3328.8,0.03772682]
[1732327576690,0.27775586,3331.3,3328.9,0.03003214]
[1732327576981,0.27775586,3331.2,3328.6,0.03003214]
[1732327577163,0.82775586,3331.1,3329.0,0.03772461]
[1732327577366,0.8253,3330.9,3328.2,0.03003511]
[1732327577686,0.27775586,3330.8,3327.7,0.04003662]
[1732327578180,0.27775586,3330.8,3327.8,0.03773546]
[1732327578389,0.27775586,3330.8,3327.9,0.03003662]
[1732327578544,0.55,3330.7,3328.0,0.8012]
[1732327578739,0.27775586,3330.6,3328.0,0.83893377]
[1732327579381,0.27775586,3330.6,3328.0,0.86897263]
[1732327579850,0.27775586,3330.6,3330.4,0.01623017]
[1732327580057,0.27775586,3330.5,3330.4,0.01623017]
[1732327580294,0.82782171,3330.8,3330.4,0.01623017]
[1732327580446,0.44313388,3330.7,3330.4,0.01623017]
[1732327580639,0.27782171,3330.6,3330.4,0.01623017]
[1732327582092,1.3753,3330.5,3330.4,0.01623017]
[1732327582245,1.65312171,3330.5,3330.4,0.01623017]
[1732327582588,0.55,3330.3,3328.7,0.02285541]
[1732327582773,0.55,3330.1,3328.7,0.02285541]
[1732327582978,0.55,3329.9,3328.8,0.03678985]
[1732327583280,0.8253,3329.6,3328.7,0.02285541]
[1732327583468,0.27782171,3329.5,3328.7,0.02285541]
[1732327585413,0.55,3329.5,3328.7,0.02285541]
[1732327586117,0.8253,3329.6,3328.7,0.02285541]
[1732327587580,0.55,3330.2,3328.7,0.02285541]
[1732327587814,0.55,3330.0,3328.7,0.02285541]
[1732327588039,0.27656786,3329.9,3328.7,0.02285541]
[1732327588525,1.26799391,3330.3,3328.8,0.8012]
[1732327588526,0.55,3330.2,3328.8,0.8012]
[1732327588705,0.55,3330.0,3328.8,0.8012]
[1732327588901,0.8253,3330.3,3328.9,0.03609085]
[1732327589147,0.8253,3330.9,3329.0,0.8012]
[1732327589329,0.276509,3330.8,3329.0,0.8012]
[1732327589647,0.16905929,3330.7,3329.1,0.03608865]
[1732327589800,0.276509,3330.6,3329.1,0.03608865]
[1732327590232,0.55,3330.5,3329.1,0.03608865]
[1732327590436,0.55,3330.6,3329.1,0.03608865]
[1732327590637,1.3753,3330.3,3329.1,0.03608865]
[1732327590844,0.27655552,3330.2,3329.0,0.8012]